bitfinex/quotes_SOLUSD_20260310
["timestamp","ask_amount","ask_price","bid_price","bid_amount"]
[1773146957727,11.53548893,86.689,86.661,0.87155011]
[1773146957921,11.53548893,86.689,86.654,11.54003012]
[1773146957922,11.53548893,86.689,86.67,4.09233247]
[1773146958226,11.53548893,86.689,86.671,0.87155011]
[1773146959332,11.53548893,86.689,86.647,28.85237248]
[1773146959333,0.96182448,86.696,86.65,0.87155011]
[1773146959507,0.96182448,86.679,86.652,0.87155011]
[1773146960417,11.53695286,86.678,86.652,0.87155011]
[1773146961541,11.53646158,86.682,86.66,4.09233247]
[1773146961725,11.53646158,86.682,86.661,0.87155011]
[1773146963242,28.83693945,86.695,86.661,0.87155011]
[1773146963243,11.53548893,86.689,86.661,0.87155011]
[1773146963817,11.53429144,86.698,86.662,1.03421125]
[1773146964046,11.53429144,86.698,86.671,1.03421125]
[1773146965826,11.53363592,86.703,86.672,11.53775152]
[1773146966139,11.53363592,86.703,86.673,0.87155011]
[1773146967036,11.53363592,86.703,86.672,11.53775152]
[1773146967037,11.53363592,86.703,86.681,0.87155011]
[1773146967229,4.09233247,86.72,86.691,0.87155011]
[1773146967230,41.32299933,86.717,86.691,0.87155011]
[1773146967940,0.96182448,86.716,86.691,0.87155011]
[1773146968328,40.36117485,86.717,86.691,0.87155011]
[1773146968529,11.53176424,86.717,86.691,0.87155011]
[1773146968729,11.53176424,86.717,86.69,4.09233247]
[1773146968730,11.53176424,86.717,86.693,0.87155011]
[1773146971034,11.53109937,86.722,86.693,0.87155011]
[1773146971541,11.53109937,86.722,86.677,28.84250954]
[1773146971542,0.96182448,86.746,86.711,0.87155011]
[1773146971743,11.52854004,86.742,86.721,0.87155011]
[1773146972940,0.96182448,86.741,86.721,0.87155011]
[1773146973517,11.52854004,86.742,86.721,0.87155011]
[1773146976329,0.87102656,86.746,86.721,0.87155011]
[1773146978533,0.87102656,86.744,86.721,0.87155011]
[1773146980342,11.52804196,86.745,86.721,0.87155011]
[1773146980542,4.18774476,86.76,86.731,0.94378216]
[1773146980543,0.1,86.76,86.731,0.94378216]
[1773146980922,4.18774476,86.76,86.731,0.94378216]
[1773146981157,0.87102656,86.759,86.731,0.94378216]
[1773146984559,0.87102656,86.749,86.721,0.94378216]
[1773146987061,0.87405872,86.747,86.721,0.94378216]
[1773146989557,11.52790906,86.746,86.721,0.94378216]
[1773146990138,12.40196778,86.746,86.721,0.94378216]
[1773146990448,12.40196778,86.746,86.722,0.96231149]
[1773146990634,0.87405872,86.745,86.722,0.96231149]
[1773146992146,11.52790906,86.746,86.722,0.96231149]
[1773146993946,0.87405872,86.75,86.724,0.96231149]
[1773146997754,0.87405872,86.748,86.724,0.96231149]
[1773147000159,0.87405872,86.748,86.697,3.69383402]
[1773147000160,0.87405872,86.739,86.7,4.08774476]
[1773147000658,0.87405872,86.739,86.701,0.16266114]
[1773147001150,0.87405872,86.739,86.7,4.08774476]
[1773147001557,0.87405872,86.737,86.702,11.53375931]
[1773147001745,0.87405872,86.737,86.71,4.08774476]
[1773147002158,0.87405872,86.737,86.711,0.96231149]
[1773147006959,0.1,86.76,86.736,0.16266114]
[1773147007148,0.92321493,86.759,86.731,0.16266114]
[1773147007570,0.92321493,86.758,86.728,0.94434513]
[1773147008948,0.92321493,86.756,86.728,0.94434513]
[1773147010264,0.92321493,86.749,86.722,0.94434513]
[1773147010973,0.92321493,86.747,86.723,12.47531154]
[1773147011745,0.92321493,86.747,86.724,0.94434513]
[1773147014351,11.52790906,86.746,86.724,0.94434513]
[1773147014556,0.92321493,86.745,86.725,11.53070049]
[1773147015144,0.92321493,86.751,86.726,0.94434513]
[1773147015348,0.92321493,86.757,86.731,0.94434513]
[1773147016446,0.92321493,86.755,86.731,0.94434513]
[1773147018283,0.92321493,86.753,86.731,0.94434513]
[1773147019762,0.92321493,86.753,86.725,11.53061197]
[1773147019975,0.92321493,86.753,86.726,0.94434513]
[1773147021273,0.92321493,86.751,86.726,0.94434513]
[1773147023170,0.92321493,86.751,86.726,12.4748511]
[1773147023367,11.52737752,86.75,86.727,0.94434513]
[1773147023869,0.1,86.76,86.731,0.94434513]
[1773147024071,0.1,86.76,86.741,0.94434513]
[1773147024277,0.92321493,86.767,86.741,0.94434513]
[1773147025469,0.92321493,86.767,86.743,0.94434513]
[1773147027252,0.92321493,86.767,86.745,0.94434513]
[1773147027872,0.2,86.77,86.745,0.94434513]
[1773147028075,0.2,86.77,86.751,0.94434513]
[1773147029381,0.1,86.79,86.76,4.08774476]
[1773147029382,0.92321493,86.783,86.76,4.08774476]
[1773147029881,11.52297985,86.784,86.761,0.94434513]
[1773147030083,11.52246304,86.787,86.761,1.10700627]
[1773147030466,0.92321493,86.786,86.761,1.10700627]
[1773147030973,0.92321493,86.779,86.751,12.47158977]
[1773147031179,0.92321493,86.779,86.752,0.94434513]
[1773147031481,0.92321493,86.769,86.739,0.94434513]
[1773147031680,0.92321493,86.769,86.741,0.94434513]
[1773147034378,0.90212933,86.767,86.75,0.94236723]
[1773147034781,0.90212933,86.767,86.743,0.94236723]
[1773147035275,0.90212933,86.767,86.736,0.94236723]
[1773147036078,0.90212933,86.767,86.741,0.94236723]
[1773147036280,11.52521316,86.767,86.743,0.94236723]
[1773147036677,11.52521316,86.767,86.75,4.08291122]
[1773147036886,0.90212933,86.779,86.751,0.94236723]
[1773147037058,0.90212933,86.788,86.761,0.94236723]
[1773147038880,4.18291122,86.79,86.729,57.65028705]
[1773147038881,11.52246304,86.787,86.763,0.94236723]
[1773147039076,12.42459237,86.787,86.763,0.94236723]
[1773147039275,0.90212933,86.786,86.763,0.94236723]
[1773147043092,0.1,86.79,86.763,0.94236723]
[1773147043093,0.90212933,86.784,86.763,0.94236723]
[1773147044086,0.90212933,86.784,86.763,12.46799264]
[1773147044297,0.90212933,86.784,86.764,0.94236723]
[1773147046488,11.52299413,86.783,86.764,0.94236723]
[1773147046701,0.94299238,86.782,86.764,0.94236723]
[1773147048791,0.1,86.79,86.766,0.97203237]
[1773147048792,0.94299238,86.787,86.766,0.97203237]
[1773147048987,0.94299238,86.787,86.732,0.97203237]
[1773147049186,0.94299238,86.787,86.751,0.97203237]
[1773147050792,0.94299238,86.779,86.741,0.97203237]
[1773147050981,40.32908533,86.786,86.741,0.97203237]
[1773147050982,0.94299238,86.769,86.741,0.97203237]
[1773147051182,0.94299238,86.769,86.731,1.13469351]
[1773147051489,0.94299238,86.769,86.732,0.97203237]
[1773147053596,4.08291122,86.77,86.731,11.5299028]
[1773147053597,0.94299238,86.767,86.734,0.97203237]
[1773147054099,0.94299238,86.759,86.727,0.97203237]
[1773147055679,11.52631457,86.758,86.741,0.97203237]
[1773147056390,0.94299238,86.763,86.741,0.97203237]
[1773147056693,11.52578317,86.762,86.741,0.97203237]
[1773147057594,4.08291122,86.78,86.751,0.97203237]
[1773147057595,0.94299238,86.768,86.751,0.97203237]
[1773147057795,0.94299238,86.779,86.751,0.97203237]
[1773147058197,0.94299238,86.779,86.75,4.08291122]
[1773147058198,0.94299238,86.778,86.753,0.97203237]
[1773147059286,0.94299238,86.769,86.741,0.97203237]
[1773147059991,0.94299238,86.767,86.741,0.97203237]
[1773147061193,0.94299238,86.759,86.73,0.16266114]
[1773147062098,0.94299238,86.759,86.729,0.97203237]
[1773147062099,0.94299238,86.757,86.729,0.97203237]
[1773147062480,0.94299238,86.749,86.729,0.97203237]
[1773147063301,0.94299238,86.747,86.724,0.97203237]
[1773147063595,0.97945565,86.74,86.724,0.97203237]
[1773147063793,0.97945565,86.74,86.711,11.53256218]
[1773147063794,0.97945565,86.739,86.712,0.93701309]
[1773147066207,11.5289723,86.738,86.713,11.53229619]
[1773147066403,0.97945565,86.745,86.714,0.93701309]
[1773147069409,11.52817485,86.744,86.716,0.93701309]
[1773147070290,0.97945565,86.745,86.716,0.93701309]
[1773147070488,0.97945565,86.749,86.716,0.93701309]
[1773147070695,0.97945565,86.748,86.716,0.93701309]
[1773147071100,0.97945565,86.739,86.716,0.93701309]
[1773147071511,0.97945565,86.739,86.721,0.93701309]
[1773147071698,11.5289723,86.738,86.721,0.93701309]
[1773147071906,0.97945565,86.739,86.721,0.93701309]
[1773147074997,0.97945565,86.737,86.713,11.53222823]
[1773147075202,0.97945565,86.737,86.714,0.93701309]
[1773147080592,0.97945565,86.735,86.71,4.08291122]
[1773147080790,0.97945565,86.735,86.692,28.83765303]
[1773147080791,0.97945565,86.729,86.702,11.53373136]
[1773147081404,0.97945565,86.729,86.703,0.93701309]
[1773147084112,0.97945565,86.727,86.704,12.47050635]
[1773147085626,0.97945565,86.719,86.693,0.93701309]
[1773147086212,57.63901451,86.747,86.687,0.93701309]
[1773147086213,0.97945565,86.717,86.687,0.93701309]
[1773147086414,0.97945565,86.717,86.689,0.93701309]
[1773147086713,0.97945565,86.717,86.691,0.93701309]
[1773147089097,0.97945565,86.726,86.701,0.93701309]
[1773147089914,57.6279301,86.764,86.711,0.93701309]
[1773147089915,0.97945565,86.731,86.711,0.93701309]
[1773147090131,11.52929409,86.736,86.711,0.93701309]
[1773147091622,0.97945565,86.736,86.713,0.93701309]
[1773147092455,0.97945565,86.736,86.7,4.08291122]
[1773147092625,0.97945565,86.736,86.703,0.93701309]
[1773147093629,4.08291122,86.74,86.703,0.93701309]
[1773147093630,0.95959438,86.734,86.704,11.53349326]
[1773147094431,0.95959438,86.734,86.705,0.97658742]
[1773147095827,0.95959438,86.732,86.7,15.62083996]
[1773147096029,0.95959438,86.729,86.7,11.53393583]
[1773147097106,40.35372925,86.733,86.691,28.83786041]
[1773147097107,0.95959438,86.719,86.691,0.97658742]
[1773147098325,0.95959438,86.717,86.691,0.97658742]
[1773147099032,0.95959438,86.717,86.693,0.97658742]
[1773147101833,11.53189722,86.716,86.693,0.97658742]
[1773147102135,0.95959438,86.717,86.695,0.97658742]
[1773147104124,0.95959438,86.717,86.697,0.97658742]
[1773147105840,0.95959438,86.717,86.698,11.53429144]
[1773147108133,0.95959438,86.717,86.698,0.99421457]
[1773147108438,0.96759266,86.73,86.701,0.99421457]
[1773147109436,0.96759266,86.738,86.711,0.99421457]
[1773147110040,12.49669788,86.737,86.713,0.99421457]
[1773147110242,0.96759266,86.736,86.713,0.99421457]
[1773147112543,0.96759266,86.736,86.715,0.99421457]
[1773147112719,12.49696373,86.735,86.715,0.99421457]
[1773147112915,0.96759266,86.734,86.715,0.99421457]
[1773147113620,11.52888372,86.739,86.715,0.99421457]
[1773147114241,12.49647638,86.739,86.715,0.99421457]
[1773147114541,0.96759266,86.738,86.715,0.99421457]
[1773147114959,12.49669788,86.737,86.715,0.99421457]
[1773147115143,0.96759266,86.748,86.721,0.99421457]
[1773147116146,0.96759266,86.748,86.717,0.99421457]
[1773147117332,0.96759266,86.746,86.717,0.99421457]
[1773147119234,0.96759266,86.746,86.715,0.99421457]
[1773147119437,0.96759266,86.744,86.715,0.99421457]
[1773147122951,4.08690413,86.75,86.71,4.08690413]
[1773147122952,0.96759266,86.742,86.717,0.99421457]
[1773147123152,0.96759266,86.742,86.721,0.99421457]
[1773147123349,12.49542019,86.747,86.721,0.99421457]
[1773147125250,0.9417985,86.789,86.74,4.08690413]
[1773147125433,0.9417985,86.779,86.751,0.94899257]
[1773147127857,0.9417985,86.777,86.751,0.94899257]
[1773147128233,0.9417985,86.777,86.753,0.94899257]
[1773147130056,0.9417985,86.777,86.76,4.08690413]
[1773147130258,0.9417985,86.777,86.761,0.94899257]
[1773147131846,0.9417985,86.775,86.751,0.94899257]
[1773147132060,0.9417985,86.775,86.75,4.08690413]
[1773147132356,0.9417985,86.773,86.75,4.08690413]
[1773147132949,0.9417985,86.769,86.74,16.56449334]
[1773147133136,0.9417985,86.769,86.74,11.52859664]
[1773147133339,0.9417985,86.773,86.741,0.94899257]
[1773147133553,0.9417985,86.773,86.751,0.94899257]
[1773147135163,0.9417985,86.773,86.753,0.94899257]
[1773147141658,0.9417985,86.773,86.755,0.94899257]
[1773147142062,0.9417985,86.771,86.755,0.94899257]
[1773147142247,0.9417985,86.771,86.75,4.08690413]
[1773147142651,0.9417985,86.771,86.741,12.47747019]
[1773147142853,0.9417985,86.771,86.741,11.52847762]
[1773147143058,0.9417985,86.771,86.742,0.94899257]
[1773147144366,0.1,86.79,86.751,0.94899257]
[1773147144367,0.9417985,86.769,86.751,0.94899257]
[1773147146349,0.9417985,86.769,86.753,0.94899257]
[1773147146660,11.52419204,86.774,86.753,0.94899257]
[1773147146661,0.9417985,86.774,86.753,0.94899257]
[1773147146841,32.99211844,86.79,86.753,0.94899257]
[1773147146842,11.52432208,86.773,86.753,0.94899257]
[1773147147043,0.9417985,86.769,86.747,11.52773182]
[1773147148979,0.9417985,86.767,86.741,11.52857356]
[1773147150381,0.9417985,86.765,86.741,11.52857356]
[1773147151578,0.9417985,86.765,86.74,11.52870647]
[1773147151773,0.9417985,86.765,86.74,15.6156106]
[1773147151974,0.9417985,86.765,86.736,11.52917917]
[1773147153480,0.9417985,86.759,86.73,16.56580982]
[1773147153676,0.9417985,86.759,86.73,12.47890569]
[1773147153981,0.9417985,86.759,86.73,16.56580982]
[1773147154864,0.9417985,86.759,86.731,0.90382378]
[1773147155583,11.52631457,86.758,86.732,11.52976986]
[1773147155771,0.96919911,86.757,86.732,12.43359364]
[1773147156080,0.96919911,86.757,86.717,0.90382378]
[1773147156376,0.96919911,86.757,86.721,0.90382378]
[1773147156582,0.96919911,86.749,86.721,0.90382378]
[1773147157159,0.96919911,86.749,86.72,4.08427047]
[1773147157555,11.52764328,86.748,86.721,11.53123234]
[1773147157872,0.96919911,86.747,86.722,0.90382378]
[1773147158864,0.96919911,86.756,86.731,0.90382378]
[1773147161084,11.52671315,86.755,86.731,0.90382378]
[1773147161287,0.96919911,86.754,86.731,0.90382378]
[1773147161986,11.5262389,86.759,86.731,0.90382378]
[1773147162292,0.96919911,86.758,86.731,0.90382378]
[1773147163283,0.96919911,86.769,86.741,0.90382378]
[1773147163585,0.96919911,86.769,86.732,40.35419452]
[1773147163586,0.96919911,86.769,86.736,0.90382378]
[1773147163783,0.96919911,86.759,86.728,0.90382378]
[1773147164482,40.33664864,86.77,86.72,0.90382378]
[1773147164483,0.96919911,86.749,86.72,0.90382378]
[1773147164973,0.96919911,86.749,86.719,11.53138251]
[1773147164974,0.96919911,86.749,86.715,0.90382378]
[1773147165179,0.96919911,86.747,86.715,0.90382378]
[1773147165975,0.96919911,86.747,86.714,11.53205103]
[1773147166179,0.96919911,86.739,86.708,12.43677799]
[1773147166580,0.96919911,86.739,86.708,0.90382378]
[1773147166972,0.96919911,86.739,86.71,4.98645839]
[1773147167169,0.96679834,86.737,86.711,0.90218792]
[1773147170592,0.96679834,86.735,86.712,11.53242919]
[1773147170773,11.52923814,86.736,86.721,0.90218792]
[1773147171586,11.52790906,86.746,86.721,0.90218792]
[1773147171893,0.96679834,86.745,86.721,0.90218792]
[1773147174397,11.52790906,86.746,86.721,0.90218792]
[1773147174398,0.96679834,86.743,86.721,0.90218792]
[1773147176408,0.96679834,86.739,86.703,0.90218792]
[1773147176593,0.96679834,86.739,86.711,0.90218792]
[1773147176907,0.96679834,86.739,86.703,0.90218792]
[1773147179302,46.09970216,86.769,86.682,3.69383402]
[1773147179303,11.5289723,86.738,86.711,0.90218792]
[1773147179493,0.96679834,86.748,86.721,0.90218792]
[1773147183689,0.96679834,86.748,86.722,11.53109937]
[1773147183690,11.52777617,86.747,86.722,11.53109937]
[1773147183894,11.52777617,86.747,86.723,0.91263652]
[1773147184910,0.88483287,86.746,86.723,0.91263652]
[1773147185214,0.88483287,86.746,86.719,0.91263652]
[1773147186311,11.52804196,86.745,86.719,0.91263652]
[1773147186613,0.88483287,86.744,86.719,0.91263652]
[1773147188694,4.08427047,86.74,86.719,0.91263652]
[1773147188991,0.88483287,86.739,86.719,0.91263652]
[1773147190211,40.34907714,86.743,86.719,0.91263652]
[1773147190212,0.88483287,86.737,86.719,0.91263652]
[1773147191096,0.88483287,86.737,86.719,12.44405731]
[1773147191702,0.88483287,86.737,86.72,0.91263652]
[1773147192314,0.88483287,86.737,86.711,40.36385193]
[1773147192696,0.88483287,86.737,86.712,0.91263652]
[1773147192895,0.88483287,86.748,86.712,0.91263652]
[1773147193290,0.88483287,86.748,86.721,0.91263652]
[1773147196920,12.41177225,86.754,86.731,0.91263652]
[1773147197121,0.88483287,86.753,86.731,0.91263652]
[1773147199111,11.52711176,86.752,86.731,0.91263652]
[1773147199424,0.88483287,86.749,86.718,12.44426778]
[1773147199600,0.88483287,86.749,86.719,0.91263652]
[1773147200625,0.88483287,86.739,86.714,0.91263652]
[1773147201525,0.88483287,86.738,86.715,12.44466673]
[1773147203320,0.88483287,86.738,86.716,0.91263652]
[1773147203519,0.88483287,86.736,86.716,0.91263652]
[1773147209930,0.88483287,86.734,86.716,0.91263652]
[1773147210630,0.88483287,86.747,86.717,0.91263652]
[1773147210806,0.88483287,86.747,86.716,11.5317855]
[1773147210807,0.88483287,86.747,86.721,0.91263652]
[1773147211131,11.5275104,86.749,86.731,0.91263652]
[1773147212312,0.88483287,86.749,86.731,0.91263652]
[1773147213411,0.88483287,86.748,86.731,0.91263652]
[1773147214126,0.88483287,86.748,86.72,4.08427047]
[1773147214127,0.95144248,86.76,86.74,4.08427047]
[1773147214316,0.95144248,86.768,86.741,0.86994083]
[1773147215607,28.81051174,86.774,86.742,0.86994083]
[1773147215608,0.95144248,86.766,86.742,0.86994083]
[1773147219439,0.95144248,86.764,86.742,0.86994083]
[1773147222336,11.52565033,86.763,86.742,0.86994083]
[1773147222523,12.47709281,86.763,86.742,0.86994083]
[1773147223624,0.95144248,86.773,86.744,0.86994083]
[1773147223836,0.95144248,86.772,86.744,0.86994083]
[1773147224015,0.95144248,86.769,86.744,0.86994083]
[1773147224647,0.95144248,86.767,86.744,0.86994083]
[1773147224939,11.52498617,86.768,86.731,11.5299028]
[1773147224940,0.95144248,86.759,86.731,11.5299028]
[1773147225535,0.95144248,86.765,86.74,4.08297609]
[1773147226130,0.91916751,86.786,86.76,4.08297609]
[1773147226333,11.52246304,86.787,86.76,4.08297609]
[1773147226637,0.91916751,86.786,86.76,4.08297609]
[1773147226835,0.91916751,86.784,86.762,0.86257603]
[1773147227560,0.91916751,86.779,86.75,4.08297609]
[1773147227857,0.91916751,86.769,86.738,0.86224064]
[1773147228152,0.91916751,86.769,86.739,11.52883939]
[1773147229130,0.91916751,86.767,86.74,4.08297609]
[1773147229332,0.91916751,86.779,86.751,0.86160445]
[1773147230835,0.91916751,86.778,86.751,0.86160445]
[1773147231254,0.1,86.79,86.761,0.86097502]
[1773147231255,1.01916751,86.79,86.761,0.86097502]
[1773147231537,0.91916751,86.788,86.765,0.86097502]
[1773147231845,0.91916751,86.788,86.753,0.86097502]
[1773147232930,0.91916751,86.786,86.755,0.86066172]
[1773147233127,0.25685602,86.786,86.755,0.86066172]
[1773147233325,0.1,86.79,86.781,0.90681882]
[1773147233540,0.1,86.79,86.771,0.90681882]
[1773147234329,0.1,86.79,86.761,0.90681882]
[1773147234927,0.1,86.79,86.763,0.90681882]
[1773147235127,0.91916751,86.789,86.763,0.90681882]
[1773147235331,0.91916751,86.789,86.771,0.90681882]
[1773147235637,0.91916751,86.789,86.763,0.90681882]
[1773147236239,0.91916751,86.789,86.758,0.90681882]
[1773147236446,0.91916751,86.789,86.759,0.90681882]
[1773147237052,11.52233027,86.788,86.76,15.60902496]
[1773147237348,0.91916751,86.787,86.76,15.60902496]
[1773147238251,0.91916751,86.787,86.76,4.08297609]
[1773147238456,0.91916751,86.787,86.76,15.60902496]
[1773147238826,0.91916751,86.787,86.751,0.90681882]
[1773147239030,0.91916751,86.779,86.751,0.90681882]
[1773147239431,0.91916751,86.777,86.751,0.90681882]
[1773147239832,0.91916751,86.777,86.752,11.52711176]
[1773147240027,0.91916751,86.777,86.753,0.90681882]
[1773147241032,0.91916751,86.777,86.748,11.52760706]
[1773147241232,0.91916751,86.777,86.751,0.90681882]
[1773147241448,0.91916751,86.775,86.753,0.90681882]
[1773147241763,0.91916751,86.775,86.75,4.08297609]
[1773147242056,0.91916751,86.775,86.744,0.90681882]
[1773147242262,11.52392366,86.776,86.74,4.08297609]
[1773147242263,0.91916751,86.769,86.74,4.08297609]
[1773147242632,11.52392366,86.776,86.751,0.90681882]
[1773147242845,0.91916751,86.775,86.751,0.90681882]
[1773147243053,0.91916751,86.775,86.74,40.3504119]
[1773147243054,0.91916751,86.775,86.741,0.90681882]
[1773147243934,0.1,86.79,86.751,0.94586174]
[1773147243935,0.87971612,86.789,86.751,0.94586174]
[1773147244246,0.87971612,86.788,86.751,0.94586174]
[1773147244655,0.87971612,86.788,86.761,0.94586174]
[1773147245551,0.87971612,86.788,86.77,4.08297609]
[1773147246055,0.1,86.79,86.766,0.94586174]
[1773147246056,11.52246304,86.787,86.766,0.94586174]
[1773147246355,0.87971612,86.786,86.76,4.08297609]
[1773147246558,0.87971612,86.786,86.761,0.94586174]
[1773147247061,0.87971612,86.786,86.76,5.02883783]
[1773147247858,0.87971612,86.786,86.751,0.94586174]
[1773147248057,0.87971612,86.784,86.76,5.02883783]
[1773147249859,0.87971612,86.784,86.76,0.94586174]
[1773147250237,0.87971612,86.779,86.748,0.94586174]
[1773147250459,0.87971612,86.779,86.72,4.08297609]
[1773147250460,0.87971612,86.779,86.751,0.94586174]
[1773147250869,0.87971612,86.779,86.72,4.08297609]
[1773147250870,0.87971612,86.779,86.741,0.94586174]
[1773147251847,0.87971612,86.777,86.741,0.94586174]
[1773147252053,0.87971612,86.777,86.742,11.52844066]
[1773147252937,0.87971612,86.777,86.743,0.94586174]
[1773147253156,0.87971612,86.777,86.751,0.94586174]
[1773147253963,0.87971612,86.775,86.743,0.94586174]
[1773147256563,11.52418927,86.774,86.743,0.94586174]
[1773147256762,0.87971612,86.773,86.744,11.52817485]
[1773147256968,0.87971612,86.773,86.744,12.47403659]
[1773147257348,0.87971612,86.773,86.745,0.94586174]
[1773147258265,0.87971612,86.779,86.761,0.94586174]
[1773147258461,11.52365807,86.778,86.761,0.94586174]
[1773147260350,0.87971612,86.785,86.761,0.94586174]
[1773147260552,0.87971612,86.785,86.77,4.08297609]
[1773147260849,0.1,86.79,86.77,5.02883783]
[1773147260850,0.97971612,86.79,86.77,5.02883783]
[1773147261055,0.97971612,86.79,86.77,4.08297609]
[1773147261255,0.97971612,86.79,86.763,0.94586174]
[1773147263269,0.97971612,86.79,86.77,4.08297609]
[1773147263270,0.87971612,86.788,86.77,4.08297609]
[1773147263973,0.87971612,86.788,86.736,57.64589988]
[1773147263974,0.87971612,86.788,86.752,0.94586174]
[1773147265566,0.87971612,86.788,86.75,4.08297609]
[1773147265567,0.87971612,86.786,86.754,0.94586174]
[1773147265868,0.87971612,86.769,86.731,0.94586174]
[1773147266165,0.87971612,86.769,86.74,4.08297609]
[1773147266367,0.87971612,86.778,86.751,0.94586174]
[1773147267598,0.87971612,86.776,86.753,0.94586174]
[1773147269690,0.87971612,86.774,86.753,0.94586174]
[1773147269983,0.87971612,86.769,86.742,11.52844066]
[1773147270159,0.87971612,86.769,86.742,12.4743024]
[1773147271664,0.87971612,86.767,86.743,0.94586174]
[1773147273389,0.87971612,86.767,86.744,11.52817485]
[1773147273976,0.87971612,86.767,86.744,12.38760241]
[1773147274178,0.1,86.79,86.751,0.85942756]
[1773147274179,11.52455381,86.772,86.751,0.85942756]
[1773147274587,0.86638053,86.771,86.751,0.85942756]
[1773147274781,11.52455381,86.772,86.741,0.85942756]
[1773147274782,0.86638053,86.769,86.741,0.85942756]
[1773147275685,0.86638053,86.767,86.742,12.38786822]
[1773147277483,0.86638053,86.767,86.72,4.08283406]
[1773147277484,0.86638053,86.767,86.73,4.94226162]
[1773147277670,0.86638053,86.757,86.731,12.38933036]
[1773147277870,0.86638053,86.757,86.732,0.85942756]
[1773147280794,11.52579283,86.762,86.741,0.85942756]
[1773147281593,11.52379086,86.777,86.751,0.85942756]
[1773147281894,0.86638053,86.787,86.761,0.85942756]
[1773147282895,12.38895941,86.787,86.763,0.85942756]
[1773147284579,12.38895941,86.787,86.687,19.42869938]
[1773147284580,0.86638053,86.779,86.743,0.85942756]
[1773147284889,0.86638053,86.769,86.743,0.85942756]
[1773147285879,0.91271168,86.767,86.743,0.85942756]
[1773147286093,0.91271168,86.767,86.741,11.52857356]
[1773147287202,0.91271168,86.765,86.741,11.52857356]
[1773147287584,0.91271168,86.759,86.731,0.91293771]
[1773147287783,0.91271168,86.759,86.732,0.91293771]
[1773147289483,40.33838138,86.766,86.732,0.91293771]
[1773147289484,0.91271168,86.757,86.732,0.91293771]
[1773147290804,11.52658029,86.756,86.732,0.91293771]
[1773147290983,0.91271168,86.755,86.732,0.91293771]
[1773147292298,0.91271168,86.755,86.733,11.52963693]
[1773147294415,11.52684602,86.754,86.733,11.52963693]
[1773147294703,0.91271168,86.753,86.733,11.52963693]
[1773147294904,0.91271168,86.753,86.733,12.44257464]
[1773147295605,0.91271168,86.753,86.734,0.91293771]
[1773147295794,0.91271168,86.753,86.74,4.08283406]
[1773147296190,0.91271168,86.753,86.734,0.91293771]
[1773147300218,3.69383402,86.788,86.72,4.99577177]
[1773147300219,0.91271168,86.751,86.72,4.99577177]
[1773147300394,0.91271168,86.751,86.721,0.91293771]
[1773147301810,0.91271168,86.749,86.721,0.91293771]
[1773147301999,0.91271168,86.749,86.723,0.91293771]
[1773147302508,57.6218067,86.773,86.722,11.53109937]
[1773147302509,0.91271168,86.759,86.731,0.91293771]
[1773147302684,0.91271168,86.759,86.741,0.91293771]
[1773147302685,12.4388934,86.759,86.741,0.91293771]
[1773147302888,11.52565727,86.763,86.741,0.91293771]
[1773147303294,12.43836895,86.763,86.741,0.91293771]
[1773147303506,0.91271168,86.762,86.741,0.91293771]
[1773147304094,0.88952304,86.76,86.741,0.91293771]
[1773147305311,11.52591602,86.761,86.741,0.91293771]
[1773147307211,11.52591602,86.761,86.743,0.87328768]
[1773147307718,0.88952304,86.76,86.736,0.87328768]
[1773147308108,0.88952304,86.76,86.738,0.87328768]
[1773147309502,0.88952304,86.758,86.738,0.87328768]
[1773147310017,0.88952304,86.758,86.739,11.52883939]
[1773147310212,0.88952304,86.758,86.74,0.87328768]
[1773147310909,11.52571408,86.763,86.741,0.87328768]
[1773147312514,12.41450921,86.768,86.743,0.87328768]
[1773147312809,0.88952304,86.771,86.751,0.87328768]
[1773147313002,11.52449682,86.772,86.751,0.87328768]
[1773147313816,11.52449682,86.772,86.753,0.87328768]
[1773147315125,0.88952304,86.772,86.753,0.87328768]
[1773147315416,0.88952304,86.769,86.748,11.52761264]
[1773147315798,0.88952304,86.769,86.744,12.40137462]
[1773147318402,0.88952304,86.767,86.744,12.40137462]
[1773147318606,0.88952304,86.767,86.745,0.87328768]
[1773147321514,0.88952304,86.767,86.747,0.87328768]
[1773147322716,11.52525182,86.766,86.747,0.87328768]
[1773147322901,0.88952304,86.765,86.747,0.87328768]
[1773147323602,12.41504053,86.764,86.747,0.87328768]
[1773147323904,0.88952304,86.763,86.747,0.87328768]
[1773147328400,11.52578317,86.762,86.747,0.87328768]
[1773147328724,0.88952304,86.761,86.742,0.87328768]
[1773147329026,11.52578317,86.762,86.728,0.87328768]
[1773147329027,0.88952304,86.759,86.728,0.87328768]
[1773147329608,0.88952304,86.757,86.729,0.87328768]
[1773147331808,0.88952304,86.755,86.731,0.87328768]
[1773147333421,11.52684602,86.754,86.732,11.52976986]
[1773147333623,0.88952304,86.753,86.733,0.87328768]
[1773147336925,0.90838758,86.759,86.735,0.88734042]
[1773147337122,11.52541792,86.765,86.741,0.88734042]
[1773147337316,0.90838758,86.764,86.741,0.88734042]
[1773147339530,0.90838758,86.764,86.729,28.82533819]
[1773147339531,0.90838758,86.764,86.743,0.88734042]